Cogmind - Beta 9.5 @@@ ROGUE MODE // 2020.04.04 @ 22:21:32 Player: Trione Result: Destroyed by G-47 Trooper with Particle Gun Performance ------------- Evolutions (0) 0 Regions Visited (1) 200 Robots Destroyed (6) 30 Value Destroyed (189) 189 Prototype IDs (0) 0 Alien Tech Used (0) 0 Bonus (0) 0 TOTAL SCORE: 419 Bonus ------- None Cogmind --------- Core Integrity 0/250 Matter 225/300 Energy 116/125 System Corruption 0% Temperature Cool (54) Movement Rolling (100) Location -10/Materials Parts ------- > --- POWER (1) -------- Light Ion Engine > --- PROPULSION (2) --- Compact Wheel Compact Wheel > --- UTILITY (2) ------ Small Storage Unit > --- WEAPON (2) ------- Small Laser Light Assault Rifle > --- INVENTORY (6) ---- Light Treads Wheel Peak State ------------ > --- POWER ------------ Light Ion Engine > --- PROPULSION ------- Wheel Compact Wheel > --- UTILITY ---------- Small Storage Unit > --- WEAPON ----------- Assault Rifle Light Assault Rifle > --- INVENTORY -------- Light Assault Rifle [Rating: 6] Favorites ----------- Power Light Ion Engine Engine Light Ion Engine Propulsion Compact Wheel Treads Light Treads Wheel Compact Wheel Utility Small Storage Unit Storage Small Storage Unit Weapon Light Assault Rifle Energy Gun Small Laser Ballistic Gun Light Assault Rifle Build | -11 -10 ------- Run | Scr Mat Slots Evolved . | . . Power . | . . Propulsion . | . . Utility . | . . Weapon . | . . Parts Attached 14 | 7 7 Power 2 | 1 1 Engine 2 | 1 1 Core . | . . Reactor . | . . Propulsion 6 | 2 4 Treads 2 | . 2 Leg . | . . Wheel 4 | 2 2 Hover . | . . Flight . | . . Utility 1 | 1 . Device . | . . Storage 1 | 1 . Processor . | . . Hackware . | . . Protection . | . . Artifact . | . . Weapon 5 | 3 2 Energy Gun 1 | . 1 Energy Cannon . | . . Ballistic Gun 4 | 3 1 Ballistic Cannon . | . . Launcher . | . . Special Weapon . | . . Impact Weapon . | . . Slashing Weapon . | . . Piercing Weapon . | . . Special Melee Weapon . | . . Unidentified Prototypes . | . . Parts Lost 4 | . 4 Power 1 | . 1 Propulsion 1 | . 1 Utility . | . . Weapon 2 | . 2 Highest Loss Streak 4 | . 4 Average Slot Usage (%) 80 | . 80 Engine 12 | . 12 Treads 14 | . 14 Wheel 14 | . 14 Storage 14 | . 14 Energy Gun 1 | . 1 Ballistic Gun 23 | . 23 Naked Turns . | . . Heaviest Build 10 | 10 10 Greatest Support 40 | 26 40 Greatest Overweight (x) . | . . Average Overweight (x) . | . . Largest Inventory Capacity 6 | 6 6 Average Capacity 5 | 5 6 Most Carried 5 | 5 5 Average Carried 3 | 2 4 Final Capacity 6 | 6 6 Final Carried 5 | 5 2 Class Distribution -------------------- 100% | Mutant Dominant Class ---------------- Mutant | -10/Materials Resources | -11 -10 ----------- Run | Scr Mat Matter Collected 329 | 282 47 Remotely . | . . Salvage Created 322 | 84 238 Parts 15 | 2 13 Haulers Intercepted . | . . Recyclers Shooed . | . . Parts Field Recycled . | . . Retrieved Matter . | . . Parts Self-Destructed . | . . Prevented . | . . Kills | -11 -10 ------- Run | Scr Mat Combat Hostiles Destroyed 5 | . 5 Guns 5 | . 5 Classes Destroyed 2 | 1 1 Recycler 1 | 1 . Grunt 5 | . 5 Best Kill Streak 5 | 1 5 Combat Bots Only 5 | . 5 Max Kills in Single Turn 1 | 1 1 Gunslinging . | . . Exploded . | . . Melee . | . . Uniques/NPCs Destroyed . | . . Combat | -11 -10 -------- Run | Scr Mat Damage Taken 794 | . 794 Core 254 | . 254 Absorbed by Shields . | . . Core Remaining (%) 100 | 100 . Volleys Fired 26 | 3 23 Largest 2 | 2 2 Hottest 60 | 40 60 Shots Fired 41 | 6 35 Gun 41 | 6 35 Cannon . | . . Launcher . | . . Special . | . . Kinetic 38 | 6 32 Thermal 3 | . 3 Explosive . | . . Electromagnetic . | . . Robot Hit Streak 19 | 1 19 Robot Miss Streak 4 | 4 1 Penetration Max . | . . Secondary Targets 1 | . 1 Max Gunslinging Chain 1 | . 1 Shots Hit Robots 32 | 1 31 Core Hits 16 | 2 14 Critical Hits . | . . Critical Kills . | . . Critical Parts Destroyed . | . . Melee Attacks . | . . Impact . | . . Slashing . | . . Piercing . | . . Sneak Attacks . | . . Combat Hostiles . | . . Follow-up Attacks . | . . Damage Inflicted 379 | 17 362 Guns 379 | 17 362 Cannons . | . . Explosions . | . . Melee . | . . Ramming . | . . Kinetic 356 | 17 339 Thermal 23 | . 23 Explosive . | . . Electromagnetic . | . . Impact . | . . Slashing . | . . Piercing . | . . Highest Corruption . | . . Average Corruption . | . . Corruption Purged . | . . Overload Shots . | . . Overflow Damage . | . . Projectiles . | . . Explosions . | . . Melee . | . . Knockbacks . | . . Impact . | . . Kinetic . | . . Secondary . | . . Self-Inflicted Damage . | . . Shots . | . . Rammed . | . . Targets Rammed . | . . Kicked . | . . Crushed . | . . Highest Temperature 59 | . 59 Average Temperature 14 | . 14 Received Heat Transfer 444 | . 444 Siege Activations . | . . Robots Corrupted . | . . Combat Hostiles . | . . Parts Fried . | . . Impact Corruptions . | . . Robots Melted . | . . Combat Hostiles . | . . Parts Melted . | . . Heat Transferred 50 | . 50 Parts Sabotaged . | . . Parts Stolen . | . . Parts Stripped . | . . Power Chain Reactions . | . . Missiles Intercepted . | . . Alert | -11 -10 ------- Run | Scr Mat Peak Influence 93 | 5 93 Average Influence 18 | 1 27 Maximum Alert Level . | . . Low Security (%) 100 | 100 100 Level 1 . | . . Level 2 . | . . Level 3 . | . . Level 4 . | . . Level 5 . | . . High Security . | . . Max Security . | . . Squads Dispatched . | . . Investigation . | . . Extermination . | . . Reinforcement . | . . Assault . | . . Garrison . | . . Intercept . | . . Construction Impeded . | . . Haulers Reinforced . | . . Stealth | -11 -10 --------- Run | Scr Mat Distress Signals 2 | . 2 Communications Jammed . | . . Distress Signals . | . . Times Spotted 8 | . 8 Peak Tracking Total 5 | . 5 Tactical Retreats . | . . Traps | -11 -10 ------- Run | Scr Mat Traps Triggered . | . . Indirectly . | . . Trap Hack Attempts . | . . Triggered . | . . Disarmed . | . . Reprogrammed . | . . Reused . | . . Traps Extracted . | . . Installed . | . . Triggered . | . . Machines | -11 -10 ---------- Run | Scr Mat Machines Disabled . | . . Max in Single Turn . | . . Machines Sabotaged . | . . Garrisons Compromised . | . . Overloaded Fab Kills . | . . Fab Network Shutdowns . | . . Hacking | -11 -10 --------- Run | Scr Mat Machines Accessed . | . . Terminals . | . . Fabricators . | . . Repair Stations . | . . Recycling Units . | . . Scanalyzers . | . . Garrison Access . | . . Total Hacks . | . . Successful . | . . Failed . | . . Catastrophic . | . . Database Lockouts . | . . Manual . | . . Terminals . | . . Fabricators . | . . Repair Stations . | . . Recycling Units . | . . Scanalyzers . | . . Garrison Access . | . . Terminal Hacks . | . . Fabricator Hacks . | . . Repair Station Hacks . | . . Recycling Unit Hacks . | . . Scanalyzer . | . . Garrison Access Hacks . | . . Unauthorized Hacks . | . . Terminals . | . . Fabricators . | . . Repair Stations . | . . Recycling Units . | . . Scanalyzers . | . . Garrison Access . | . . Data Cores Recovered . | . . Used . | . . Hacking Detections . | . . Full Trace Events . | . . Feedback Events . | . . Feedback Blocked . | . . Robot Schematics Acquired . | . . Robots Built . | . . Matter . | . . Time . | . . Total Robot Build Rating . | . . Part Schematics Acquired . | . . Parts Built . | . . Matter . | . . Time . | . . Total Part Build Rating . | . . Parts Repaired . | . . Time . | . . Parts Recycled . | . . Recycled Matter . | . . Retrieved Matter . | . . Retrieved Components . | . . Parts Scanalyzed . | . . Part Schematics Acquired . | . . Parts Damaged . | . . Bothacking | -11 -10 ------------ Run | Scr Mat Used RIF Installer . | . . Robots Hacked . | . . Non-combat . | . . Combat . | . . Robot Hacks Applied . | . . Relay Couplers Released . | . . Robots Rewired . | . . Allies Hacked . | . . Hacks Repelled . | . . Allies | -11 -10 -------- Run | Scr Mat Total Allies . | . . Largest Group . | . . Highest-Rated Group . | . . Highest-Rated Ally . | . . Total Orders . | . . Ally Attacks . | . . Total Damage . | . . Kills . | . . Allies Corrupted . | . . Allies Melted . | . . Intel | -11 -10 ------- Run | Scr Mat Robot Analysis Total . | . . Derelict Logs Recovered . | . . Drone Launches . | . . Drone Recoveries . | . . Exploration | -11 -10 ------------- Run | Scr Mat Turns Passed 182 | 62 120 Spaces Moved 97 | 44 53 Core 2 | 2 . Treads 4 | . 4 Legs . | . . Wheels 91 | 42 49 Hover . | . . Flight . | . . Fastest Speed 50 | 50 90 Average Speed 93 | 90 95 Slowest Speed 160 | 100 160 Overloaded Moves . | . . Propulsion Burnouts . | . . Robots Hopped . | . . Cave-ins Triggered . | . . Exploration Rate (%) 11 | 5 17 Regions Visited 1 Branch Regions . Pre-discovered Areas . | . . Known Exits Taken . | . . Unknown Exits Taken 1 | 1 . Scrap Searched . | . . Spaces Dug . | . . Terrain Destroyed . | . . Melee . | . . Projectile . | . . AOE . | . . Actions | -11 -10 --------- Run | Scr Mat Total 147 | 57 90 Wait 7 | . 7 Move 96 | 43 53 Hop . | . . Pick Up 4 | 4 . Fast Attach 7 | 6 1 Attach 3 | . 3 Detach . | . . Swap 4 | 1 3 Drop . | . . Fire 26 | 3 23 Melee . | . . Ram . | . . Kick . | . . Crush . | . . Escape Stasis . | . . Rewire . | . . Trap . | . . Miscellaneous . | . . Route ------- -11/Scrapyard -10/Materials History --------- Turn | Location | Event 23 | -11/Scrapyard | Discovered new exit (range 16) 63 | -11/Scrapyard | Entered Materials 154 | -10/Materials | Core integrity fell below 50% 178 | -10/Materials | Core integrity fell below 20% 183 | -10/Materials | Destroyed by G-47 Trooper with Particle Gun Last Messages --------------- 00146_ K-01 Serf collects debris. 00146_ R-06 Scavenger collects Aluminum Leg. 00149_ G-47 Trooper destroyed. 00150_ K-01 Serf collects debris. 00150_ R-06 Scavenger collects Sml. Laser. 00153_ G-34 Mercenary destroyed. 00154_ K-01 Serf collects debris. 00154_ R-06 Scavenger collects Ion Engine. 00155_ K-01 Serf collects debris. 00156_ W-16 Scout sends out distress signal. 00157_ K-01 Serf collects debris. 00161_ G-34 Mercenary destroyed. 00161_ K-01 Serf collects debris. 00169_ Assault Rifle destroyed. 00170_ K-01 Serf collects debris. 00172_ Acquired Sml. Laser. 00173_ Acquired 47 matter. 00174_ K-01 Serf collects debris. 00175_ Lgt. Treads destroyed. 00178_ K-01 Serf collects debris. Map ----- +----------------------------------------------------+ | ??????????????????????????# #?????????????????? | | ??????????????????????????# #?????????????????? | | ??????????????????????????# #?????????????????? | | ??????????????????????????# % #############?????? | | ??????????????????????????# ## # #?????? | | ??????????????????????????# ## # """ #?????? | | ????????????????????####### ## # "R" #?????? | | ????????????????????# ###+### + " " #?????? | | ????????????????????# # #?????? | | ????????????????????# # #?????? | | ????????????????????# ########?????? | | ????????????????????# ####### #????????????? | | ?????????? #######+### ######## #????????????? | | ????????? # # #????????????? | | ????????? # """ # #????????????? | | ????????? + """ # #????????????? | | ??????????###+######## # """ # #????????????? | | ?????????????????????# # # #????????????? | | ?????????????????????# #? # #????????????? | | ????????????????????## #? # #????????????? | | ????????????????????#T #?? # #????????????? | | ????????????????????## #??##/## #????????????? | | ?????????????????????# ##### ####?????????? | | ?????????????????????# !%= % k ???????? | | ?????????????????????# %! * ???????? | | ?????????????????????# *@=!k= w ???????? | | ?????????????????????#ugg################????????? | | ?????????????????????# #???????????????????????? | | ?????????????????????# #???????????????????????? | | ???????????????????? + #???????????????????????? | | ??????????????????? # ^#???????????????????????? | | ?????????????????? #^^^????????????????????????? | | ?????????????????###?# ????????????????????????? | | ?????????????????????# ????????????????????????? | | ?????????????????????# ????????????????????????? | | ?????????????????????# ????????????????????????? | | ?????????????????????# ????????????????????????? | | ?????????????????????# ????????????????????????? | | ?????????????????????????????????????????????????? | | ?????????????????????????????????????????????????? | | ?????????????????????????????????????????????????? | | ?????????????????????????????????????????????????? | | ?????????????????????????????????????????????????? | | ?????????????????????????????????????????????????? | | ?????????????????????????????????????????????????? | | ?????????????????????????????????????????????????? | | ?????????????????????????????????????????????????? | | ?????????????????????????????????????????????????? | | ?????????????????????????????????????????????????? | | ?????????????????????????????????????????????????? | +----------------------------------------------------+ Best States ------------- Heat Dissipation 25 Energy Generation 10 Energy Capacity 125 Matter Stores 300 Matter Capacity 300 Sight Range 16 Terrain Scan Density 10 Evasion (%) 42 Recoil Reduction 2 Item Schematics ----------------- None Robot Schematics ------------------ None Fabricated ------------ Nothing Alien Tech Used ----------------- None Achievements -------------- None Challenges ------------ None Game ------ Seed MissileAnalysisNanosword Manual? 0 Play Time 00:03:39 Cumulative 981.8 hours Start 2020.04.04 @ 22:18:37 End 2020.04.04 @ 22:21:32 Sessions 1 Manual Loads 0 Difficulty Rogue Special Mode None Game No. 379 Rogue 379 Adventurer 0 Explorer 0 Win Type - Total 24 Types 13/1/7/0/0/0/3 Lore% 96 Gallery% 97 Achievement% 83 Wizard Run 0 Options --------- ASCII 0 Keyboard 1 Movement Vi Keybinds 0 Fullscreen 0 Font 12/Crisp Map View 76x50 Tactical HUD 1 Map Filters NONE Filters NONE Steam 1 RUN: 55f29028-6166-49e7-a889-6b0de099065a